bitfinex/quotes_ETHUSD_20251012
["timestamp","ask_amount","ask_price","bid_price","bid_amount"]
[1760271322568,0.1296,3845.0,3844.6,2.60304439]
[1760271322569,2.60089997,3844.9,3844.6,0.002]
[1760271322764,4.52098317,3844.7,3844.6,0.002]
[1760271323117,5.15458317,3844.7,3844.6,0.001]
[1760271323279,5.15458317,3844.7,3843.6,0.002]
[1760271323280,4.52152449,3843.9,3843.6,0.002]
[1760271323461,4.69302449,3843.9,3843.6,0.002]
[1760271323777,4.79202449,3843.9,3843.6,0.002]
[1760271324163,1.92,3843.9,3843.6,0.002]
[1760271324381,4.62122449,3843.9,3843.6,0.002]
[1760271326002,1.92,3843.9,3843.6,0.002]
[1760271326680,1.92,3843.9,3843.8,14.502]
[1760271332641,2.019,3843.9,3843.8,14.502]
[1760271334650,1.92,3843.9,3843.8,14.502]
[1760271337242,4.79122449,3843.9,3843.8,14.502]
[1760271338830,4.79122449,3843.9,3843.8,0.002]
[1760271342737,5.42482449,3843.9,3843.8,0.002]
[1760271343137,4.52165985,3843.7,3843.6,0.002]
[1760271343533,5.25495985,3843.7,3843.6,0.002]
[1760271343763,2.60206604,3843.1,3842.7,14.5]
[1760271343943,4.52206604,3843.1,3842.7,14.5]
[1760271344141,4.62176604,3843.1,3842.7,14.5]
[1760271345175,4.62176604,3843.1,3842.1,0.002]
[1760271345534,4.62176604,3843.1,3842.2,14.5]
[1760271346690,5.15573374,3843.0,3842.9,1e-08]
[1760271347067,5.25543374,3843.0,3842.9,1e-08]
[1760271347958,4.62183374,3843.0,3842.9,1e-08]
[1760271349284,4.726218,3843.0,3842.9,1e-08]
[1760271351296,5.359818,3843.0,3842.9,1e-08]
[1760271352508,5.359818,3843.0,3841.2,14.5]
[1760271352509,2.60328534,3841.3,3841.2,14.5]
[1760271352664,4.52328534,3841.3,3841.2,14.5]
[1760271352868,1.92,3841.3,3841.2,14.5]
[1760271353268,4.52328534,3841.3,3841.2,14.5]
[1760271353881,2.60194638,3843.3,3841.2,14.5]
[1760271354082,0.001,3844.2,3841.3,0.4575]
[1760271354083,0.0997,3842.8,3841.3,0.4575]
[1760271354291,0.0997,3842.7,3841.3,0.4575]
[1760271354513,0.0997,3843.3,3842.1,2.60271035]
[1760271354716,2.60227999,3842.8,3842.5,14.5]
[1760271354918,1.92,3842.8,3842.5,14.5]
[1760271355123,2.60227272,3842.8,3842.5,14.5]
[1760271355623,1.92,3842.7,3842.5,14.5]
[1760271358390,2.60234533,3842.7,3842.5,14.5]
[1760271358800,2.60229087,3842.8,3842.5,14.5]
[1760271359004,2.70199087,3842.8,3842.5,14.5]
[1760271360043,2.60233731,3842.7,3842.5,14.5]
[1760271360236,0.0997,3842.8,3842.5,14.5]
[1760271360522,2.0197,3842.8,3842.5,14.5]
[1760271360714,4.62198443,3842.8,3842.5,14.5]
[1760271360913,4.52240462,3842.6,3842.5,14.5]
[1760271361116,4.52240462,3842.6,3841.0,2.60342283]
[1760271361117,2.0197,3842.6,3841.0,2.60342283]
[1760271361355,2.60296246,3841.8,3841.0,2.60342283]
[1760271361664,2.60281648,3842.0,3839.8,5.43629869]
[1760271361665,0.0997,3841.7,3841.1,14.5]
[1760271361825,2.60330929,3841.3,3841.1,14.5]
[1760271362153,0.0997,3841.2,3841.1,14.5]
[1760271362334,2.70305311,3841.2,3841.1,14.5]
[1760271362537,0.0997,3841.2,3841.1,14.5]
[1760271362937,2.70305311,3841.2,3841.1,14.5]
[1760271363171,0.1296,3841.3,3841.1,14.5]
[1760271363469,2.73262416,3841.7,3841.1,14.5]
[1760271363654,1.92,3841.6,3841.1,14.5]
[1760271364022,2.0496,3841.7,3841.1,17.10340133]
[1760271364227,0.1296,3841.7,3841.2,2.60334701]
[1760271364470,0.1296,3841.7,3841.1,17.10339931]
[1760271364968,0.1296,3841.7,3841.2,2.60334696]
[1760271365434,0.1296,3841.7,3841.1,14.5]
[1760271365760,0.1296,3842.0,3841.4,0.1296]
[1760271365930,0.1296,3842.0,3840.4,3.07445737]
[1760271365931,0.1296,3841.7,3841.1,2.73301689]
[1760271366268,0.1296,3841.7,3841.5,14.5]
[1760271367630,0.1296,3841.7,3841.5,17.10313424]
[1760271367831,0.1296,3841.7,3841.5,14.5]
[1760271369562,0.1296,3841.7,3841.6,2.60308204]
[1760271369736,0.0997,3842.3,3841.7,2.60301429]
[1760271369944,0.1296,3842.1,3841.7,2.60301429]
[1760271370258,0.1296,3842.1,3841.5,17.10314939]
[1760271370259,0.1296,3842.1,3841.8,2.60294534]
[1760271370639,0.1296,3842.1,3841.7,2.60298804]
[1760271370835,0.1296,3842.1,3841.6,2.60306235]
[1760271371262,0.2293,3842.1,3841.6,2.60306235]
[1760271371858,0.2293,3842.1,3841.7,2.60301361]
[1760271373751,0.2293,3842.1,3841.6,2.60306507]
[1760271373957,0.1296,3842.1,3841.6,2.60306507]
[1760271374157,0.0997,3842.0,3841.6,2.60306507]
[1760271375261,0.0997,3842.0,3841.7,2.60300384]
[1760271376071,0.0997,3842.0,3841.5,17.60314815]
[1760271376072,0.0997,3842.0,3841.6,2.60307292]
[1760271376950,0.0997,3842.0,3841.7,2.60300365]
[1760271378173,0.0997,3842.0,3841.6,2.60305931]
[1760271378846,0.0997,3842.0,3841.5,15.0]
[1760271378847,0.0997,3842.0,3841.7,2.60301314]
[1760271379042,0.1296,3842.1,3841.7,2.60301314]
[1760271379352,0.1296,3842.1,3841.5,17.60313409]
[1760271379353,0.1296,3842.1,3841.8,2.6029384]
[1760271379556,0.1296,3842.1,3841.5,15.0]
[1760271379757,0.1296,3842.8,3842.3,2.60254882]
[1760271380089,0.1296,3842.8,3842.4,0.4706]
[1760271380258,0.1296,3842.8,3842.5,2.6024227]
[1760271380568,0.1296,3842.8,3842.5,2.60242344]
[1760271380974,0.1296,3842.8,3842.6,2.60240304]
[1760271381778,0.1296,3842.8,3842.5,2.60244691]
[1760271382772,0.1296,3842.8,3842.4,14.5]
[1760271382975,0.0997,3842.7,3842.4,14.5]
[1760271383145,0.0997,3842.7,3842.4,17.10251316]
[1760271383663,2.60247234,3842.5,3842.4,14.5]
[1760271383890,4.62217234,3842.5,3842.4,14.5]
[1760271384969,2.60267555,3842.2,3842.1,0.002]
[1760271385165,4.52267555,3842.2,3842.1,0.002]
[1760271385402,4.62237555,3842.2,3842.1,0.002]
[1760271386201,5.25597555,3842.2,3842.1,0.002]
[1760271389312,4.62237555,3842.2,3842.1,0.002]
[1760271398237,2.60287795,3842.0,3841.5,0.5]
[1760271398542,1.92,3841.8,3841.5,0.5]
[1760271398910,0.0997,3841.7,3841.5,0.5]
[1760271399116,0.0997,3841.7,3841.6,14.5]
[1760271400839,1.92,3841.8,3841.6,14.5]
[1760271401044,0.0997,3841.8,3841.6,14.5]
[1760271401842,0.0997,3841.7,3841.6,14.5]
[1760271402748,2.60288422,3841.9,3841.6,14.5]
[1760271402928,0.0997,3841.8,3841.6,14.5]
[1760271404162,2.60288422,3841.9,3841.6,14.5]
[1760271404363,0.0997,3841.8,3841.6,14.5]
[1760271404518,1.92,3841.7,3841.6,14.5]
[1760271404724,2.0197,3841.7,3841.6,14.5]
[1760271405738,0.0997,3841.7,3841.6,14.5]
[1760271408255,0.2293,3841.7,3841.6,14.5]
[1760271409155,4.75231429,3841.7,3841.6,14.5]
[1760271409372,2.60308204,3841.6,3841.5,0.502]
[1760271409519,4.62278204,3841.6,3841.5,0.502]
[1760271421960,4.62278204,3841.6,3841.5,15.002]
[1760271422157,1.921,3841.6,3841.5,15.002]
[1760271422658,0.001,3841.6,3841.5,15.002]
[1760271422866,0.001,3841.6,3841.5,17.60514981]
[1760271423392,0.001,3841.6,3841.5,15.002]
[1760271423585,0.001,3841.6,3841.5,17.60514981]
[1760271424067,0.001,3841.6,3841.5,15.002]
[1760271424972,0.001,3841.6,3841.5,17.60514981]
[1760271426311,0.001,3841.6,3841.5,18.05414981]
[1760271426481,0.001,3841.6,3841.5,17.60514981]
[1760271427378,0.001,3841.6,3841.5,18.05414981]
[1760271427684,0.001,3841.6,3841.5,18.18374981]
[1760271427892,0.001,3841.6,3841.5,18.81734981]
[1760271429384,0.001,3841.6,3841.5,18.18374981]
[1760271430213,0.001,3841.6,3841.5,18.81734981]
[1760271436015,0.001,3841.6,3841.5,20.73734981]
[1760271440120,0.001,3843.0,3842.9,3.23580146]
[1760271440326,0.001,3843.0,3842.9,3.36540146]
[1760271440528,0.001,3843.0,3842.9,5.73440146]
[1760271440729,0.001,3843.0,3842.9,20.23440146]
[1760271452740,0.001,3843.0,3842.9,17.23180146]
[1760271452941,0.001,3843.0,3842.9,17.70170146]
[1760271453140,0.001,3843.0,3842.9,17.57210146]
[1760271453346,0.001,3843.0,3842.9,17.70170146]
[1760271456351,0.001,3843.0,3842.9,17.23180146]
[1760271457148,0.001,3843.0,3842.9,17.70170146]
[1760271457344,0.001,3843.0,3842.9,17.23180146]
[1760271458039,0.001,3843.0,3842.9,17.70170146]
[1760271460851,0.001,3843.0,3842.9,17.23180146]
[1760271461957,0.001,3843.0,3842.9,17.70170146]
[1760271464159,0.001,3843.0,3842.9,18.20570146]
[1760271464357,0.001,3843.0,3842.9,18.33530146]
[1760271464529,0.001,3843.0,3842.9,18.32540146]
[1760271466138,0.001,3843.0,3842.9,18.19580146]
[1760271466351,0.001,3843.0,3842.9,20.11580146]
[1760271467026,0.001,3843.4,3842.9,20.11580146]
[1760271467027,1e-08,3843.4,3843.3,3.23553063]
[1760271467560,1e-08,3843.4,3843.3,3.69553063]
[1760271467857,1e-08,3843.4,3843.3,18.19553063]
[1760271468060,1e-08,3843.4,3843.3,21.54553063]
[1760271468860,1e-08,3843.4,3843.3,20.11553063]
[1760271471477,1e-08,3844.6,3844.5,3.23471848]
[1760271472064,1e-08,3844.6,3844.5,3.69471848]
[1760271472432,1e-08,3844.6,3844.5,18.19471848]
[1760271472647,1e-08,3844.6,3844.5,20.11471848]
[1760271476250,1e-08,3844.6,3844.5,20.24431848]
[1760271477870,1e-08,3844.6,3844.5,19.61071848]
[1760271478174,1e-08,3844.6,3844.5,17.69071848]
[1760271479178,1e-08,3844.6,3844.5,17.23071848]
[1760271479377,1e-08,3844.6,3844.5,17.70521848]
[1760271482106,1e-08,3844.6,3844.5,14.6296]
[1760271482467,1e-08,3844.6,3844.5,17.70521848]
[1760271484166,1e-08,3844.6,3844.5,14.6296]
[1760271484367,1e-08,3844.6,3844.5,17.23071848]
[1760271485000,1e-08,3844.6,3844.5,14.6296]
[1760271485204,1e-08,3844.6,3844.5,17.23071848]
[1760271486113,1e-08,3844.6,3844.5,14.6296]
[1760271486316,4.62005083,3844.6,3844.5,14.5]
[1760271486612,4.74965083,3844.6,3844.5,14.5]
[1760271486775,1.92,3844.4,3843.3,0.002]
[1760271486980,0.1296,3843.7,3843.3,0.002]
[1760271487218,0.1666,3843.4,3843.3,0.002]
[1760271487375,2.76846293,3843.4,3843.3,0.002]
[1760271487579,4.78886293,3843.4,3843.3,0.002]
[1760271492846,2.187,3843.4,3843.3,0.002]
[1760271493054,2.1853,3843.4,3843.3,0.002]
[1760271493548,4.78716293,3843.4,3843.3,0.002]
[1760271493866,2.1853,3843.4,3843.3,0.002]
[1760271494842,4.78716293,3843.4,3843.3,0.002]
[1760271495052,2.1853,3843.4,3843.3,0.002]
[1760271495421,0.1673,3844.0,3843.3,0.002]
[1760271495851,4.52159264,3843.8,3843.3,0.002]
[1760271496163,1.92,3843.8,3843.3,0.002]
[1760271496448,0.0997,3843.7,3843.3,0.002]
[1760271497121,0.1296,3843.6,3843.3,0.002]
[1760271498231,2.0496,3843.6,3843.3,14.502]
[1760271498430,0.0997,3843.5,3843.3,14.502]
[1760271498724,0.0997,3843.4,3843.3,14.502]
[1760271499258,4.62156293,3843.4,3843.3,14.502]
[1760271500449,2.0197,3843.4,3843.3,14.502]
[1760271500974,4.62156293,3843.4,3843.3,14.502]
[1760271501135,2.0197,3843.4,3843.3,14.502]
[1760271501471,1.92,3843.4,3843.3,14.502]
[1760271501676,0.1296,3843.6,3843.3,14.502]
[1760271502037,0.1296,3843.8,3843.4,2.60182814]
[1760271502560,0.1296,3843.8,3843.4,2.60186293]
[1760271502732,0.2653,3843.7,3843.4,2.60186293]
[1760271502933,0.2653,3843.7,3843.4,2.60183832]
[1760271503432,0.1296,3843.8,3843.7,2.60165985]
[1760271503668,1e-08,3844.6,3843.3,14.502]
[1760271503669,1e-08,3844.6,3843.5,0.4745]
[1760271503856,0.1296,3844.4,3843.9,2.60146907]
[1760271504170,0.1296,3844.4,3844.2,14.5]
[1760271504372,0.2286,3844.4,3844.2,14.5]
[1760271504585,0.099,3844.3,3844.2,14.5]
[1760271504732,0.1296,3844.4,3844.2,14.5]
[1760271504937,0.099,3844.3,3844.2,14.5]
[1760271505676,0.1296,3844.4,3844.2,14.5]
[1760271505843,1e-08,3844.6,3844.2,14.5]
[1760271505844,1e-08,3844.6,3844.2,17.10129807]
[1760271506050,1e-08,3844.6,3844.3,2.60123817]
[1760271506235,1e-08,3844.6,3844.2,17.23091009]
[1760271506578,1e-08,3844.6,3844.4,2.60112794]
[1760271507270,1e-08,3844.6,3844.5,2.60111848]
[1760271510056,1e-08,3844.6,3844.5,17.10111848]
[1760271511476,1e-08,3844.6,3844.5,17.52951848]
[1760271511693,1e-08,3844.6,3844.5,17.10111848]
[1760271512889,1e-08,3844.6,3844.5,17.52951848]
[1760271516889,1e-08,3844.6,3844.5,20.21271848]
[1760271517781,1e-08,3844.6,3844.5,20.31699906]
[1760271525688,1e-08,3844.6,3844.5,20.31899906]
[1760271533259,1e-08,3844.6,3844.5,14.502]
[1760271533847,1e-08,3844.6,3844.5,17.10311848]
[1760271537458,1e-08,3844.6,3844.5,17.55251848]
[1760271537611,1e-08,3844.6,3844.5,17.10311848]
[1760271538020,1e-08,3844.6,3844.5,17.55251848]
[1760271539120,1e-08,3844.6,3844.5,18.18611848]
[1760271541229,1e-08,3844.6,3844.5,20.10611848]
[1760271543141,1e-08,3844.6,3844.5,20.23571848]
[1760271544326,1e-08,3844.6,3844.5,22.17371845]
[1760271545353,1e-08,3844.6,3844.5,17.23271848]
[1760271546850,0.09930001,3844.6,3844.5,14.502]
[1760271551776,1e-08,3844.6,3844.5,14.502]
[1760271553643,0.09930001,3844.6,3844.5,14.502]
[1760271554045,1e-08,3844.6,3844.5,14.502]
[1760271561577,0.09930001,3844.6,3844.5,14.502]
[1760271561978,1e-08,3844.6,3844.5,14.502]
[1760271562184,2.70035083,3844.6,3844.5,14.502]
[1760271562346,2.70035083,3844.6,3844.5,0.002]
[1760271563263,4.62035083,3844.6,3844.5,0.002]
[1760271564480,1e-08,3844.6,3844.5,0.002]
[1760271564695,0.09930001,3844.6,3844.5,0.002]
[1760271564856,2.70035083,3844.6,3844.5,0.002]
[1760271565192,5.25395083,3844.6,3844.5,0.002]
[1760271577903,2.60111848,3844.5,3844.4,1e-08]
[1760271578107,5.15471848,3844.5,3844.4,1e-08]
[1760271578410,5.25401848,3844.5,3844.4,1e-08]
[1760271578797,5.3583815,3844.5,3844.4,1e-08]
[1760271581010,5.76638489,3844.5,3844.4,1e-08]
[1760271583510,5.15519217,3843.8,3843.7,1e-08]
[1760271583917,5.25519217,3843.8,3843.7,1e-08]
[1760271586771,5.66322009,3843.8,3843.7,1e-08]
[1760271593665,5.76759428,3843.8,3843.7,1e-08]
[1760271594932,5.66322009,3843.8,3843.7,1e-08]
[1760271595743,5.66422009,3843.8,3843.7,1e-08]
[1760271596252,5.25619217,3843.8,3843.7,1e-08]
[1760271603772,5.76863207,3843.8,3843.7,1e-08]
[1760271604834,3.23546293,3843.4,3843.3,1e-08]
[1760271605035,3.23580146,3842.9,3842.8,1e-08]
[1760271605349,5.28540146,3842.9,3842.8,1e-08]
[1760271605661,5.48980016,3842.9,3842.8,1e-08]
[1760271607770,3.23607234,3842.5,3842.4,1e-08]
[1760271607980,5.15607234,3842.5,3842.4,1e-08]
[1760271608360,5.25607234,3842.5,3842.4,1e-08]
[1760271608542,5.66425158,3842.5,3842.4,1e-08]
[1760271610234,5.03065158,3842.5,3842.4,1e-08]
[1760271610440,4.62247234,3842.5,3842.4,1e-08]
[1760271612955,5.25607234,3842.5,3842.4,1e-08]
[1760271613281,5.66424168,3842.5,3842.4,1e-08]
[1760271614745,5.25607234,3842.5,3842.4,1e-08]
[1760271616883,6.03924253,3842.5,3842.4,1e-08]
[1760271617974,6.44745465,3842.5,3842.4,1e-08]
[1760271620955,5.03068446,3842.5,3842.4,1e-08]
[1760271621156,2.70247234,3842.5,3842.4,1e-08]
[1760271621561,4.62247234,3842.5,3842.4,1e-08]
[1760271623100,5.25607234,3842.5,3842.4,1e-08]
[1760271623987,4.62247234,3842.5,3842.4,1e-08]
[1760271625459,5.03064038,3842.5,3842.4,1e-08]
[1760271628102,5.66424038,3842.5,3842.4,1e-08]
[1760271628261,7.10424038,3842.5,3842.4,1e-08]
[1760271628456,7.88740853,3842.5,3842.4,1e-08]
[1760271629896,7.88840853,3842.5,3842.4,1e-08]
[1760271631465,23.56014453,3842.5,3842.4,1e-08]
[1760271631668,0.6336,3841.5,3841.1,0.002]
[1760271631856,0.1708,3841.2,3841.1,0.002]
[1760271632374,4.79485311,3841.2,3841.1,0.002]
[1760271638613,4.52335311,3841.2,3841.1,0.002]
[1760271640383,1.92,3841.2,3841.1,0.002]
[1760271640698,4.52335311,3841.2,3841.1,0.002]
[1760271646183,0.1296,3841.4,3841.1,0.002]
[1760271646693,0.1296,3841.4,3841.1,17.10542029]
[1760271647012,0.1296,3841.4,3841.2,2.60334484]
[1760271647690,0.001,3841.5,3841.4,2.60321757]
[1760271649214,0.001,3841.5,3841.4,17.10321757]
[1760271649791,0.001,3841.5,3841.4,17.20758577]
[1760271650005,0.001,3841.5,3841.4,17.84118577]
[1760271650317,0.001,3841.5,3841.4,19.76118577]
[1760271650624,1e-08,3842.5,3842.4,2.60254007]
[1760271651191,1e-08,3842.5,3842.4,3.23614007]
[1760271651393,1e-08,3842.5,3842.4,17.73614007]
[1760271653023,1e-08,3842.5,3842.4,17.84047805]
[1760271653598,1e-08,3842.5,3842.4,17.73614007]
[1760271653927,1e-08,3842.5,3842.4,17.10254007]
[1760271654423,1e-08,3842.5,3842.4,19.02254007]
[1760271654629,1e-08,3842.5,3842.4,19.65614007]
[1760271657629,1e-08,3842.5,3842.4,19.78574007]
[1760271659935,1e-08,3842.5,3842.4,17.86574007]
[1760271664939,1e-08,3842.5,3842.4,17.86774007]
[1760271665436,1e-08,3842.5,3842.4,19.78774007]
[1760271665934,1e-08,3842.5,3842.4,19.89205383]
[1760271668638,1e-08,3843.8,3843.7,3.23525985]
[1760271669508,1e-08,3843.8,3843.7,17.73525985]
[1760271670114,1e-08,3843.8,3843.7,17.10165985]
[1760271670837,1e-08,3843.8,3843.7,14.5]
[1760271671037,1e-08,3843.8,3843.7,17.10165985]
[1760271671831,1e-08,3843.8,3843.7,17.73525985]
[1760271672743,1e-08,3843.8,3843.7,19.65525985]
[1760271676016,1e-08,3843.8,3843.7,19.75953744]
[1760271678027,1e-08,3843.8,3843.7,21.69753741]
[1760271678457,1e-08,3843.8,3843.7,19.75953744]
[1760271678617,1e-08,3843.8,3843.7,19.88913744]
[1760271682770,0.001,3844.2,3844.1,4.52138914]
[1760271683145,0.001,3844.2,3844.1,4.65098914]
[1760271683352,0.001,3844.2,3844.1,19.15098914]
[1760271684680,0.1,3844.2,3844.1,19.15098914]
[1760271684832,0.1141,3844.3,3844.2,5.15492147]
[1760271685730,1e-08,3844.6,3844.2,19.65492147]
[1760271685938,1e-08,3844.6,3844.5,2.60111848]
[1760271686148,1e-08,3844.6,3844.5,2.73071848]
[1760271686662,1e-08,3844.6,3844.5,17.23071848]
[1760271691386,1e-08,3844.6,3844.5,17.86431848]
[1760271692442,1e-08,3844.6,3844.5,19.65471848]
[1760271692876,1e-08,3844.6,3844.5,19.78431848]
[1760271694180,1e-08,3844.6,3844.5,17.73471848]
[1760271697754,1e-08,3844.6,3844.5,17.10111848]
[1760271698955,1e-08,3844.6,3844.5,17.73471848]
[1760271700783,1e-08,3844.6,3844.5,14.5]
[1760271701082,1e-08,3844.6,3844.5,17.10111848]
[1760271701582,1e-08,3844.6,3844.5,14.5]
[1760271702083,1e-08,3844.6,3844.5,17.10111848]
[1760271702485,1e-08,3844.6,3844.5,17.23071848]
[1760271702977,1e-08,3844.6,3844.5,17.86431848]
[1760271704451,1e-08,3844.6,3844.5,19.78431848]
[1760271708473,1e-08,3844.6,3844.5,19.65471848]
[1760271710593,1e-08,3844.6,3844.5,20.11631848]
[1760271710888,1e-08,3844.6,3844.5,19.65471848]
[1760271717887,1e-08,3844.6,3844.5,19.75897949]
[1760271718394,1e-08,3844.6,3844.5,19.88857949]
[1760271726633,1e-08,3844.6,3844.5,17.20537949]
[1760271727193,1e-08,3844.6,3844.5,17.73471848]
[1760271727643,1e-08,3844.6,3844.5,19.65471848]
[1760271728145,1e-08,3844.6,3844.5,20.11631848]
[1760271730442,1e-08,3844.6,3844.5,27.27631848]
[1760271730812,0.001,3845.4,3844.9,3.23444787]
[1760271731015,0.001,3845.4,3844.9,5.15444787]
[1760271731222,0.001,3845.4,3844.9,5.61604787]
[1760271731522,0.001,3845.4,3844.9,20.11604787]
[1760271733134,0.001,3845.4,3844.9,19.02084787]
[1760271733726,0.001,3845.4,3844.9,17.10084787]
[1760271736612,0.001,3845.4,3844.9,17.23044787]
[1760271739043,0.001,3845.4,3844.9,17.86404787]
[1760271739423,0.001,3845.4,3844.9,17.99364787]
[1760271741152,0.001,3845.4,3844.9,19.91364787]
[1760271744448,0.001,3845.4,3844.9,19.91264787]
[1760271747054,0.001,3845.4,3844.9,19.78304787]
[1760271747273,0.001,3845.4,3844.9,19.91264787]
[1760271767610,0.001,3845.4,3844.9,19.91464787]
[1760271768918,0.001,3845.4,3844.9,20.34674787]
[1760271773330,0.001,3845.4,3845.3,5.15417732]
[1760271773830,0.001,3845.4,3845.3,5.71587732]
[1760271774142,0.001,3845.4,3845.3,20.63827648]
[1760271774293,0.42239916,3847.7,3845.3,20.63827648]
[1760271774294,0.42239916,3847.7,3847.6,2.59902276]
[1760271775123,0.42239916,3847.7,3847.6,17.09902276]
[1760271776129,0.42239916,3847.7,3847.6,17.73262276]
[1760271776497,0.42239916,3847.7,3847.6,18.51407728]
[1760271781615,1.92,3849.8,3847.7,0.6336]
[1760271781940,2.59694705,3850.7,3849.2,2.59790579]
[1760271782099,2.59740417,3850.0,3849.2,2.59790579]
[1760271782304,1.92,3849.9,3849.6,14.5]
[1760271785602,1.92,3849.8,3849.6,14.5]
[1760271785799,2.59753928,3849.8,3849.6,14.5]
[1760271786003,1.92,3850.0,3849.6,14.5]
[1760271786199,71.6,3869.8,3849.6,14.5]
[1760271786200,2.17434963,3851.4,3849.6,14.5]
[1760271786405,0.001,3850.1,3849.6,14.5]
[1760271787525,0.001,3850.1,3849.6,17.09766823]
[1760271787722,0.001,3850.1,3849.7,2.5976008]
[1760271789148,0.001,3850.1,3849.8,14.5]
[1760271791618,1.921,3850.1,3849.8,14.5]
[1760271792053,0.001,3850.1,3849.8,14.5]
[1760271793789,0.001,3850.1,3849.8,17.09753167]
[1760271794137,0.001,3850.1,3849.8,14.5]
[1760271794335,0.001,3850.1,3849.8,17.09753587]
[1760271794851,0.001,3850.1,3849.8,17.22713587]
[1760271795185,0.001,3850.1,3850.0,2.59740259]
[1760271795538,0.001,3850.1,3850.0,2.72700259]
[1760271796284,0.001,3850.1,3850.0,17.22700259]
[1760271800277,0.001,3850.1,3850.0,14.6296]
[1760271800585,0.001,3850.1,3850.0,17.22700259]
[1760271803098,0.001,3850.1,3850.0,14.6296]
[1760271803768,0.001,3850.1,3850.0,17.22700259]
[1760271804353,0.001,3850.1,3850.0,14.6296]
[1760271805292,0.001,3850.1,3850.0,17.22700259]
[1760271805970,0.001,3850.1,3850.0,14.6296]
[1760271806298,0.001,3850.1,3850.0,17.22700259]
[1760271808805,0.001,3850.1,3850.0,14.6296]
[1760271809188,0.001,3850.1,3850.0,17.22700259]
[1760271817807,0.001,3850.1,3850.0,17.73100259]
[1760271818106,0.001,3850.1,3850.0,18.31210259]
[1760271819610,0.001,3850.1,3850.0,17.86060259]
[1760271819826,0.001,3850.1,3850.0,18.31210259]
[1760271822133,0.001,3850.1,3850.0,20.23210259]
[1760271823625,0.001,3850.1,3850.0,20.60434224]
[1760271824002,1e-08,3850.9,3850.8,3.23046298]
[1760271824323,1e-08,3850.9,3850.8,5.15046298]
[1760271824526,1e-08,3850.9,3850.8,5.62186298]
[1760271824717,1e-08,3850.9,3850.8,20.64553134]
[1760271826336,1e-08,3850.9,3850.8,20.17413134]
[1760271827102,1e-08,3850.9,3850.8,20.64553134]
[1760271828224,1e-08,3850.9,3850.8,20.01193134]
[1760271828426,1e-08,3850.9,3850.8,19.01686298]
[1760271829332,1e-08,3850.9,3850.8,17.09686298]
[1760271830027,1e-08,3850.9,3850.8,19.01686298]
[1760271832496,1e-08,3850.9,3850.8,17.09686298]
[1760271833531,1e-08,3850.9,3850.8,17.55686298]
[1760271834120,1e-08,3850.9,3850.8,17.68646298]
[1760271834917,0.010985,3851.5,3851.4,2.59645843]
[1760271834918,0.00998501,3851.5,3851.4,2.59645843]
[1760271835842,0.00998501,3851.5,3851.4,17.09645843]
[1760271837314,0.52366836,3852.5,3852.4,2.59578444]
[1760271837724,0.52366836,3852.5,3851.2,2.59653828]
[1760271837924,0.52366836,3852.5,3851.0,0.46]
[1760271837925,0.52366836,3852.5,3852.3,2.59578535]
[1760271838106,0.52366836,3852.5,3851.0,0.46]
[1760271838107,0.52366836,3852.5,3852.4,17.09578444]
[1760271842021,0.52466836,3852.5,3852.4,17.09578444]
[1760271843343,0.52466836,3852.5,3852.4,14.5]
[1760271845014,0.52466836,3852.5,3852.4,14.6296]
[1760271846069,3.12038542,3852.5,3852.4,14.5]
[1760271847435,3.75398542,3852.5,3852.4,14.5]
[1760271847636,5.67398542,3852.5,3852.4,14.5]
[1760271849164,3.12038542,3852.5,3852.4,14.5]
[1760271849456,0.52466836,3852.5,3852.4,14.5]
[1760271849953,3.12038542,3852.5,3852.4,14.5]
[1760271850158,5.67398542,3852.5,3852.4,14.5]
[1760271851122,2.59620203,3851.8,3851.1,2.59663999]
[1760271851524,2.59612989,3851.9,3851.3,14.5]
[1760271851826,2.59599207,3852.1,3851.3,14.5]
[1760271851827,2.59619704,3851.8,3851.3,14.5]
[1760271852259,2.59625933,3851.7,3851.3,14.5]
[1760271852819,1.92,3852.1,3851.3,14.5]
[1760271853025,0.6336,3852.4,3851.3,14.5]
[1760271853567,1.92,3852.3,3851.3,14.5]
[1760271853769,3.22941748,3852.4,3851.3,14.5]
[1760271853770,0.6336,3852.4,3851.3,14.5]
[1760271853975,2.59645444,3851.5,3851.3,14.5]
[1760271854771,2.59633212,3851.6,3851.3,14.5]
[1760271855875,2.59639294,3851.5,3851.3,14.5]
[1760271856044,2.59645843,3851.4,3851.3,14.5]
[1760271856379,2.59641076,3851.5,3851.3,14.5]
[1760271856556,0.6336,3852.2,3851.3,14.5]
[1760271856557,4.51645843,3851.4,3851.3,14.5]
[1760271858884,2.59645843,3851.4,3851.3,14.5]
[1760271860564,2.59645843,3851.4,3851.3,14.502]
[1760271866729,4.51645843,3851.4,3851.3,14.502]
[1760271868789,2.59645249,3851.5,3851.3,14.502]
[1760271868996,0.52466836,3852.5,3851.3,14.502]
[1760271869527,1.92,3851.6,3851.3,14.502]
[1760271869721,1.92,3851.4,3851.3,14.502]
[1760271870412,2.59645843,3851.4,3851.3,14.502]
[1760271873148,1.92,3851.5,3851.3,14.502]
[1760271873992,2.59626782,3851.7,3851.3,14.502]
[1760271874232,1.92,3851.6,3851.3,14.502]
[1760271874637,4.51621475,3851.8,3851.3,14.502]
[1760271874941,1.92,3851.6,3851.3,14.502]
[1760271875238,1.92,3851.7,3851.3,14.502]
[1760271875845,1.92,3851.8,3851.3,14.502]